Workbook

Sheet 一般公共预算
A1: 附件1
A2: 2020年市本级一般公共预算调整表
A3: 单位：万元
A4: 科 目 | B4: 2020年预算数 | F4: 调整（+-）金额 | J4: 2020年调整后预算数 | N4: 科 目 | O4: 2020年预算数 | S4: 调整（+-）金额 | W4: 2020年调整后预算数
B5: 市本级 小计 | C5: 市直 | D5: 江东 新区 | E5: 市高 新区 | F5: 市本级小计 | G5: 市直 | H5: 江东 新区 | I5: 市高 新区 | J5: 市本级小计 | K5: 市直 | L5: 江东 新区 | M5: 市高 新区 | O5: 市本级 小计 | P5: 市直 | Q5: 江东 新区 | R5: 市高 新区 | S5: 市本级小计 | T5: 市直 | U5: 江东 新区 | V5: 市高 新区 | W5: 市本级小计 | X5: 市直 | Y5: 江东 新区 | Z5: 市高 新区
A6: 一、一般公共预算收入 | B6: =SUM(C6:E6) -> 271,586 | C6: =SUM(C7:C8) -> 195,586 | D6: 33,000 | E6: 43,000 | F6: =SUM(G6:I6) -> 0 | G6: 0 | H6: 0 | I6: 0 | J6: =SUM(K6:M6) -> 271,586 | K6: =C6+G6 -> 195,586 | L6: =H6+D6 -> 33,000 | M6: =I6+E6 -> 43,000 | N6: 一、一般公共预算支出 | O6: =SUM(P6:R6) -> 978,206 | P6: =SUM(P7:P29) -> 731,227 | Q6: 163,852 | R6: 83,126 | S6: =SUM(T6:V6) -> -234,491 | T6: =SUM(T7:T29) -> -184,241 | U6: =SUM(U7:U27) -> -49,750 | V6: =SUM(V7:V27) -> -500 | W6: =SUM(X6:Z6) -> 743,714 | X6: =T6+P6 -> 546,986 | Y6: 114,102 | Z6: 82,626
A7: （一）税收收入 | B7: 182,590 | C7: 120,690 | D7: 30,400 | E7: 31,500 | F7: 0 | J7: 182,590 | K7: 120,690 | L7: 30,400 | M7: 31,500 | N7: （一）一般公共服务支出 | O7: 236,235 | P7: 165,756 | Q7: 41,927 | R7: 28,552 | S7: -95,528 | T7: -66,341 | U7: -16,636 | V7: -12,551 | W7: 140,707 | X7: =T7+P7 -> 99,415 | Y7: 25,291 | Z7: 16,001
A8: （二）非税收入 | B8: 88,996 | C8: 74,896 | D8: 2,600 | E8: 11,500 | F8: 0 | J8: 88,996 | K8: 74,896 | L8: 2,600 | M8: 11,500 | N8: （二）国防支出 | O8: 2,678 | P8: 2,678 | Q8: 0 | S8: -1,140 | T8: -1,140 | W8: 1,538 | X8: =T8+P8 -> 1,538 | Y8: 0 | Z8: 0
A9: 二、转移性收入 | B9: =SUM(B10,B14) -> 251,089 | C9: 224,946 | D9: 49,982 | E9: 0 | F9: -6,433 | G9: 1,417 | H9: -7,850 | I9: 0 | J9: 244,656 | K9: 226,363 | L9: 42,132 | M9: 0 | N9: （三）公共安全支出 | O9: 74,978 | P9: 62,822 | Q9: 8,807 | R9: 3,349 | S9: -20,484 | T9: -15,458 | U9: -3,041 | V9: -1,985 | W9: 54,494 | X9: =T9+P9 -> 47,365 | Y9: 5,766 | Z9: 1,363
A10: （一）上级补助收入 | B10: 238,383 | C10: =SUM(C11:C13) -> 212,240 | D10: 49,982 | E10: 0 | F10: -7,850 | G10: 0 | H10: -7,850 | I10: 0 | J10: 230,533 | K10: 212,240 | L10: 42,132 | M10: 0 | N10: （四）教育支出 | O10: 126,051 | P10: 84,376 | Q10: 37,106 | R10: 4,570 | S10: -27,644 | T10: -15,914 | U10: -7,292 | V10: -4,438 | W10: 98,407 | X10: =T10+P10 -> 68,462 | Y10: 29,814 | Z10: 132
A11: 返还性收入 | B11: =SUM(C11:E11) -> 42,794 | C11: 34,944 | D11: 7,850 | F11: -7,850 | H11: -7,850 | J11: =SUM(K11:M11) -> 34,944 | K11: 34,944 | L11: 0 | M11: 0 | N11: （五）科学技术支出 | O11: 36,581 | P11: 21,765 | Q11: 830 | R11: 13,986 | S11: -8,302 | T11: -3,194 | V11: -5,108 | W11: 28,279 | X11: =T11+P11 -> 18,571 | Y11: 830 | Z11: 8,878
A12: 一般性转移支付收入 | B12: 119,803 | C12: 119,803 | D12: 23,839 | F12: 0 | J12: 119,803 | K12: 119,803 | L12: 23,839 | N12: （六）文化旅游体育与传媒支出 | O12: 20,721 | P12: 15,280 | Q12: 5,441 | S12: -5,456 | T12: -2,897 | U12: -2,559 | W12: 15,265 | X12: =T12+P12 -> 12,383 | Y12: 2,882 | Z12: 0
A13: 专项转移支付收入 | B13: 75,786 | C13: 57,493 | D13: 18,293 | F13: 0 | J13: 75,786 | K13: 57,493 | L13: 18,293 | N13: （七）社会保障和就业支出 | O13: 81,919 | P13: 69,548 | Q13: 12,116 | R13: 254 | S13: -26,145 | T13: -25,307 | U13: -838 | W13: 55,774 | X13: =T13+P13 -> 44,241 | Y13: 11,278 | Z13: 254
A14: （二）下级上解收入 | B14: 12,706 | C14: 12,706 | F14: 1,417 | G14: =303.86+921.57+0.3+191.4 -> 1,417 | J14: 14,123 | K14: 14,123 | L14: 0 | M14: =I14+E14 -> 0 | N14: （八）卫生健康支出 | O14: 42,321 | P14: 27,918 | Q14: 11,933 | R14: 2,470 | S14: -12,516 | T14: -9,978 | U14: -538 | V14: -2,000 | W14: 29,805 | X14: =T14+P14 -> 17,940 | Y14: 11,395 | Z14: 470
A15: 三、动用预算稳定调节基金 | B15: 27,023 | C15: 21,244 | D15: 5,779 | F15: 0 | J15: 27,023 | K15: 21,244 | L15: 5,779 | M15: 0 | N15: （九）节能环保支出 | O15: 16,888 | P15: 14,989 | Q15: 137 | R15: 1,762 | S15: -1,553 | T15: -441 | V15: -1,112 | W15: 15,336 | X15: =T15+P15 -> 14,549 | Y15: 137 | Z15: 650
A16: 四、调入资金 | B16: 395,848 | C16: =SUM(C17:C19) -> 280,430 | D16: 74,918 | E16: 40,500 | F16: -231,558 | G16: -185,658 | H16: -45,400 | I16: -500 | J16: 164,290 | K16: 94,772 | L16: 29,518 | M16: 40,000 | N16: （十）城乡社区支出 | O16: 42,040 | P16: 9,191 | Q16: 11,759 | R16: 21,090 | S16: 20,588 | T16: -2,486 | U16: -5,300 | V16: 28,374 | W16: 62,629 | X16: =T16+P16 -> 6,705 | Y16: 6,459 | Z16: 49,465
A17: （一）政府性基金预算调入资金 | B17: 350,406 | C17: 235,506 | D17: 74,400 | E17: 40,500 | F17: -215,931 | G17: -170,031 | H17: -45,400 | I17: -500 | J17: 134,475 | K17: 65,475 | L17: 29,000 | M17: 40,000 | N17: （十一）农林水支出 | O17: 66,211 | P17: 45,406 | Q17: 20,805 | S17: -12,306 | T17: -1,238 | U17: -11,068 | W17: 53,905 | X17: =T17+P17 -> 44,168 | Y17: 9,737 | Z17: 0
A18: （二）国有资本经营预算调入资金 | B18: 33,155 | C18: 32,637 | D18: 518 | F18: -15,627 | G18: =K18-C18 -> -15,627 | J18: 17,528 | K18: =[1]国有资本经营预算!X11 -> 17,010 | L18: 518 | M18: 0 | N18: （十二）交通运输支出 | O18: 95,138 | P18: 93,588 | Q18: 1,549 | S18: -20,099 | T18: -19,699 | U18: -400 | W18: 75,039 | X18: =T18+P18 -> 73,889 | Y18: 1,149 | Z18: 0
A19: （三）从其他资金调入 | B19: 12,287 | C19: 12,287 | F19: 0 | J19: 12,287 | K19: =C19+G19 -> 12,287 | L19: 0 | M19: 0 | N19: （十三）资源勘探工业信息等支出 | O19: 19,652 | P19: 19,267 | Q19: 2 | R19: 383 | S19: -8 | V19: -8 | W19: 19,644 | X19: =T19+P19 -> 19,267 | Y19: 2 | Z19: 375
A20: 五、债务转贷收入 | B20: 59,607 | C20: 58,607 | D20: 1,000 | F20: 9,906 | H20: 3,500 | I20: 6,406 | J20: 69,513 | K20: 58,607 | L20: 4,500 | M20: 6,406 | N20: （十四）商业服务业等支出 | O20: 2,231 | P20: 2,170 | Q20: 11 | R20: 50 | S20: 0 | W20: 2,231 | X20: =T20+P20 -> 2,170 | Y20: 11 | Z20: 50
A21: 六、上年结余收入 | B21: 111,364 | C21: 104,172 | D21: 5,158 | E21: 2,034 | F21: 0 | J21: 111,364 | K21: 104,172 | L21: 5,158 | M21: 2,034 | N21: （十五）金融支出 | O21: 7,958 | P21: 7,355 | Q21: 20 | R21: 583 | S21: -7,230 | T21: -7,000 | V21: -230 | W21: 728 | X21: =T21+P21 -> 355 | Y21: 20 | Z21: 353
N22: （十六）自然资源海洋气象等支出 | O22: 19,207 | P22: 15,551 | Q22: 1,230 | R22: 2,426 | S22: -4,611 | T22: -3,169 | V22: -1,442 | W22: 14,596 | X22: =T22+P22 -> 12,382 | Y22: 1,230 | Z22: 984
N23: （十七）住房保障支出 | O23: 34,333 | P23: 32,246 | Q23: 1,950 | R23: 138 | S23: -2,280 | T23: -2,130 | U23: -150 | W23: 32,053 | X23: =T23+P23 -> 30,116 | Y23: 1,800 | Z23: 138
N24: （十八）粮油物资储备支出 | O24: 3,011 | P24: 3,011 | Q24: 0 | S24: -2,630 | T24: -2,630 | W24: 381 | X24: =T24+P24 -> 381 | Y24: 0 | Z24: 0
N25: （十九）灾害防治及应急管理支出 | O25: 10,380 | P25: 5,397 | Q25: 4,983 | S25: -4,248 | T25: -2,320 | U25: -1,928 | W25: 6,132 | X25: =T25+P25 -> 3,077 | Y25: 3,055 | Z25: 0
N26: （二十）预备费 | O26: 10,200 | P26: 7,000 | Q26: 1,700 | R26: 1,500 | S26: -2,900 | T26: -2,900 | W26: 7,300 | X26: =T26+P26 -> 4,100 | Y26: 1,700 | Z26: 1,500
N27: （二十一）其他支出 | O27: 894 | P27: 686 | Q27: 208 | S27: 0 | W27: 894 | X27: =T27+P27 -> 686 | Y27: 208 | Z27: 0
N28: （二十二）债务付息支出 | O28: 28,474 | P28: 25,134 | Q28: 1,340 | R28: 2,000 | S28: 0 | W28: 28,474 | X28: =T28+P28 -> 25,134 | Y28: 1,340 | Z28: 2,000
N29: （二十三）债务发行费用支出 | O29: 104 | P29: 91 | R29: 13 | S29: 0 | W29: 104 | X29: =T29+P29 -> 91 | Y29: 0 | Z29: 13
N30: 二、上解上级支出 | O30: 41,134 | P30: 37,094 | Q30: 1,686 | R30: 2,354 | S30: 0 | W30: 41,134 | X30: =T30+P30 -> 37,094 | Y30: 1,686 | Z30: 2,354
N31: 三、补助下级支出 | O31: 35,461 | P31: 59,300 | S31: 0 | W31: 35,461 | X31: =T31+P31 -> 59,300 | Y31: 0 | Z31: 0
N32: 四、调出资金 | O32: =SUM(P32:R32) -> 0 | S32: 0 | W32: =SUM(X32:Z32) -> 0 | X32: =T32+P32 -> 0 | Y32: 0 | Z32: 0
N33: 五、债务还本支出 | O33: 61,579 | P33: 57,359 | Q33: 4,220 | S33: 6,406 | V33: 6,406 | W33: 67,985 | X33: =T33+P33 -> 57,359 | Y33: 4,220 | Z33: 6,406
N34: 六、安排预算稳定调节基金 | O34: 0 | S34: 0 | W34: 0 | X34: =T34+P34 -> 0 | Y34: 0 | Z34: 0
N35: 七、年终结余 | O35: 138 | P35: 5 | Q35: =78.8013949999977 -> 79 | R35: 54 | S35: 0 | W35: 138 | X35: =T35+P35 -> 5 | Y35: 79 | Z35: 54
A36: 收入总计 | B36: =SUM(B6,B9,B15,B16,B20,B210,B21) -> 1,116,517 | C36: 884,985 | D36: 169,837 | E36: 85,534 | F36: -228,085 | G36: -184,241 | H36: -49,750 | I36: 5,906 | J36: 888,432 | K36: 700,744 | L36: 120,087 | M36: 91,440 | N36: 支出总计 | O36: =SUM(O6,O30,O31,O32,O33,O34,O35) -> 1,116,517 | P36: 884,985 | Q36: 169,837 | R36: 85,534 | S36: -228,085 | T36: -184,241 | U36: -49,750 | V36: 5,906 | W36: 888,432 | X36: 700,744 | Y36: 120,087 | Z36: 91,440

Sheet Sheet1
